bitfinex/quotes_ETHUSD_20220218
["timestamp","ask_amount","ask_price","bid_price","bid_amount"]
[1645225209549,1.37189548,2777.5,2777.0,0.00387217]
[1645225210394,2.889,2777.6,2777.0,0.00387217]
[1645225210596,2.889,2777.6,2777.0,1.53351371]
[1645225211393,0.53151497,2777.8,2777.1,4.4003917]
[1645225211596,0.53151497,2777.8,2777.2,1.52964154]
[1645225212398,0.53151497,2777.8,2777.0,0.00387217]
[1645225212599,1.90341045,2777.8,2777.0,1.53337248]
[1645225212998,0.53151497,2777.8,2777.1,3.5]
[1645225213199,0.53151497,2777.8,2777.2,1.52950031]
[1645225214049,0.53151497,2777.8,2777.3,5.02950031]
[1645225214252,0.53151497,2777.8,2777.5,0.54724478]
[1645225214457,0.53151497,2777.8,2777.6,0.54724478]
[1645225215350,1.16243093,2778.1,2777.6,0.54724478]
[1645225215548,0.01583093,2778.1,2777.6,0.54724478]
[1645225216852,3.43881641,2778.2,2777.6,0.54724478]
[1645225217450,4.33937641,2778.2,2777.6,0.54724478]
[1645225217894,3.43881641,2778.2,2777.6,0.54724478]
[1645225218101,0.5,2778.1,2777.5,0.54724478]
[1645225218298,1.37189548,2777.8,2777.5,0.54724478]
[1645225218496,1.37189548,2777.6,2777.5,0.54724478]
[1645225218897,1.67189548,2777.6,2777.5,0.54724478]
[1645225219298,0.3,2777.7,2777.5,0.54724478]
[1645225219498,0.3,2777.7,2776.9,0.00137553]
[1645225219703,2.27419351,2777.5,2776.9,0.00137553]
[1645225219998,0.90086,2777.3,2776.9,0.0052477]
[1645225220399,1.80171,2777.6,2776.9,0.00137553]
[1645225220602,1.67333351,2777.7,2776.9,0.00137553]
[1645225220901,1.37333351,2777.6,2776.9,0.0052477]
[1645225221099,1.37333351,2777.6,2776.9,3.50387217]
[1645225221100,0.90067,2777.5,2776.9,3.50387217]
[1645225221303,1.80139,2777.7,2776.9,0.00137553]
[1645225221304,1.37333351,2777.7,2776.9,0.00137553]
[1645225221741,1.37333351,2777.7,2776.9,3.5052477]
[1645225222043,1.1852,2777.8,2776.9,3.5052477]
[1645225222044,1.1852,2777.8,2777.0,1.52963074]
[1645225222541,1.1852,2777.8,2777.1,1.52963074]
[1645225222740,0.90059,2777.7,2777.2,1.52963074]
[1645225222942,0.85059,2777.7,2776.9,0.00137553]
[1645225223340,0.85059,2777.7,2776.9,3.50387217]
[1645225223541,0.85059,2777.7,2777.0,1.52950729]
[1645225223741,0.85059,2777.7,2776.9,0.00137553]
[1645225224044,0.90069,2777.5,2776.9,0.00137553]
[1645225224246,0.90069,2777.5,2776.9,3.5052477]
[1645225224440,0.90069,2777.5,2777.0,1.52958898]
[1645225224844,0.90069,2777.5,2777.2,0.54724478]
[1645225226394,1.4513228,2777.7,2777.2,0.54724478]
[1645225226596,1.37333351,2778.0,2777.3,3.5]
[1645225226998,1.37333351,2778.2,2777.4,1.52938844]
[1645225227196,1.37333351,2778.2,2777.5,3.5]
[1645225227404,1.6113,2778.3,2777.5,3.5]
[1645225227405,2.98463351,2778.3,2777.5,3.5]
[1645225227598,2.98463351,2778.3,2777.3,3.5]
[1645225227799,2.98463351,2778.3,2777.4,1.52935904]
[1645225228000,2.98463351,2778.3,2777.5,3.5]
[1645225228202,1.6113,2778.3,2777.5,3.5]
[1645225228402,1.6113,2778.3,2777.6,1.52930114]
[1645225228599,2.51171,2778.3,2777.3,5.3005386]
[1645225228800,2.51171,2778.3,2777.4,1.52931646]
[1645225229050,1.37333351,2778.2,2777.5,3.5]
[1645225229251,3.88504351,2778.3,2777.3,3.5]
[1645225229453,1.37333351,2778.2,2777.4,1.52937331]
[1645225229651,3.88504351,2778.3,2777.4,1.52937331]
[1645225230252,3.88504351,2778.3,2777.8,0.54724478]
[1645225230850,0.9005,2778.1,2777.8,0.54724478]
[1645225231855,2.27383351,2778.1,2777.8,0.54724478]
[1645225232697,2.22383351,2778.1,2777.8,0.54724478]
[1645225233299,0.8505,2778.1,2777.8,0.54724478]
[1645225234298,3.88505351,2778.3,2777.8,0.54724478]
[1645225234498,4.18505351,2778.3,2777.8,0.54724478]
[1645225234696,4.18505351,2778.3,2777.8,0.36253478]
[1645225234910,4.13505351,2778.3,2777.8,0.36253478]
[1645225235300,4.13505351,2778.3,2777.2,6.8176]
[1645225235500,1.37333351,2778.1,2778.0,0.36253478]
[1645225235699,4.13505351,2778.3,2778.0,0.36253478]
[1645225235899,1.37333351,2778.2,2778.0,0.36253478]
[1645225239347,3.23463351,2778.3,2778.0,0.36253478]
[1645225239949,1.37333351,2778.2,2778.0,0.36253478]
[1645225240193,1.32333351,2778.2,2778.0,0.36253478]
[1645225240398,1.8613,2778.3,2778.0,0.36253478]
[1645225240593,1.8613,2778.3,2777.2,6.8176]
[1645225240594,2.70152,2778.2,2777.2,6.8176]
[1645225240794,2.70152,2778.2,2777.3,1.52940725]
[1645225240795,0.90054,2778.2,2777.3,1.52940725]
[1645225241598,0.9006,2777.9,2777.3,1.52940725]
[1645225242797,0.9006,2777.9,2777.1,1.1413]
[1645225243596,0.90071,2777.8,2777.1,1.1413]
[1645225243799,1.80142,2777.6,2777.1,1.1413]
[1645225244043,1.80141,2777.7,2776.9,1.83018176]
[1645225244247,1.80141,2777.7,2777.0,1.52955071]
[1645225244543,4.9035,2778.3,2777.7,0.00136747]
[1645225244743,4.6535,2778.3,2777.7,0.00136747]
[1645225244946,0.90052,2778.1,2777.7,0.00136747]
[1645225245943,0.90052,2778.1,2777.9,0.36253478]
[1645225246345,2.51182,2778.3,2777.9,0.36253478]
[1645225246546,3.95422912,2778.3,2777.9,0.36253478]
[1645225246747,4.25422912,2778.3,2777.9,0.36253478]
[1645225247798,3.95422912,2778.3,2777.9,0.36253478]
[1645225247997,4.4255653,2778.3,2777.9,0.36253478]
[1645225248198,3.05370912,2778.3,2777.9,0.36253478]
[1645225248395,4.4255653,2778.3,2777.9,0.36253478]
[1645225248995,3.05370912,2778.3,2777.9,0.36253478]
[1645225249295,4.4255653,2778.3,2777.9,0.36253478]
[1645225250496,3.05370912,2778.3,2777.9,0.36253478]
[1645225250999,3.05370912,2778.3,2777.7,0.00136747]
[1645225251195,3.05370912,2778.3,2778.1,0.36253478]
[1645225252649,1.44240912,2778.3,2778.1,0.36253478]
[1645225253449,2.8142653,2778.3,2778.1,0.36253478]
[1645225254053,1.44240912,2778.3,2778.1,0.36253478]
[1645225254451,2.34293882,2778.3,2778.1,0.36253478]
[1645225254652,3.714795,2778.3,2778.1,0.36253478]
[1645225255053,4.014795,2778.3,2778.1,0.36253478]
[1645225255902,5.815945,2778.3,2778.1,0.36253478]
[1645225256100,1.37237612,2778.2,2778.1,0.36253478]
[1645225256298,0.90055,2778.1,2777.7,0.00136747]
[1645225256505,3.17353858,2778.1,2777.7,0.00136747]
[1645225256900,2.27295858,2778.1,2777.7,0.00136747]
[1645225257099,0.90055,2778.1,2777.7,0.00136747]
[1645225257301,0.90047,2778.1,2777.7,0.00136747]
[1645225257504,2.27287858,2778.1,2777.7,0.00136747]
[1645225258101,0.90047,2778.1,2777.7,0.00136747]
[1645225259348,1.80102,2778.1,2777.7,0.00136747]
[1645225259850,0.90047,2778.1,2777.7,0.00136747]
[1645225260048,1.37240858,2778.2,2777.7,0.00136747]
[1645225260750,1.67240858,2778.2,2777.7,0.00136747]
[1645225261154,2.57296858,2778.2,2777.7,0.00136747]
[1645225261453,1.37240858,2778.0,2777.7,0.00136747]
[1645225261652,3.47378858,2778.0,2777.7,0.00136747]
[1645225262450,1.37240858,2777.9,2777.7,0.00136747]
[1645225262694,3.17367858,2777.9,2777.7,0.00136747]
[1645225262894,1.80127,2777.9,2777.7,0.00136747]
[1645225263098,2.70192,2777.9,2777.7,0.00136747]
[1645225264495,2.70192,2777.9,2777.7,0.00013885]
[1645225264695,4.07432858,2777.9,2777.7,0.00013885]
[1645225264895,0.90063,2777.8,2777.7,0.00013885]
[1645225265994,2.27292858,2778.0,2777.7,0.00013885]
[1645225266202,0.90052,2778.0,2777.7,0.00013885]
[1645225266651,0.90052,2778.0,2777.8,0.36253478]
[1645225266852,2.27292858,2778.0,2777.8,0.36253478]
[1645225267552,2.57430858,2778.1,2777.8,0.36253478]
[1645225268654,1.37240858,2778.0,2777.8,0.36253478]
[1645225268860,3.47484858,2778.1,2777.8,0.36253478]
[1645225269055,1.37240858,2778.0,2777.8,0.36253478]
[1645225270306,1.82919397,2778.0,2777.8,0.36253478]
[1645225270507,1.80127,2777.9,2777.8,0.36253478]
[1645225272212,3.17522823,2777.9,2777.8,0.36253478]
[1645225274750,1.37395823,2777.9,2777.8,0.36253478]
[1645225275250,1.20063,2778.0,2777.8,0.36253478]
[1645225275750,1.20063,2778.0,2777.7,0.00013885]
[1645225275951,3.93043397,2778.0,2777.9,0.26355982]
[1645225276151,3.02982397,2778.0,2777.9,0.26355982]
[1645225276351,1.20063,2778.0,2777.9,0.26355982]
[1645225276756,3.02982397,2778.0,2777.9,0.26355982]
[1645225276955,1.20063,2778.0,2777.9,0.26355982]
[1645225277151,3.02982397,2778.0,2777.9,0.26355982]
[1645225277352,1.20063,2778.0,2777.9,0.26355982]
[1645225282353,3.03158274,2778.0,2777.9,0.26355982]
[1645225282552,1.20063,2778.0,2777.9,0.26355982]
[1645225282751,0.90063,2778.0,2777.9,0.26355982]
[1645225287003,0.85063,2778.0,2777.9,0.26355982]
[1645225289557,2.22377909,2778.0,2777.9,0.26355982]
[1645225294603,0.85063,2778.0,2777.9,0.25355982]
[1645225295002,1.75131,2778.0,2777.7,0.00013885]
[1645225295202,1.37349867,2777.8,2777.7,0.00013885]
[1645225296303,2.27414867,2777.8,2777.7,0.00013885]
[1645225296550,2.27314653,2777.8,2777.7,0.00013885]
[1645225297253,0.90065,2777.8,2777.7,0.00013885]
[1645225300302,0.90065,2777.8,2777.7,0.25369867]
[1645225302711,2.73160274,2777.8,2777.7,0.25369867]
[1645225302906,0.90065,2777.8,2777.7,0.25369867]
[1645225303109,2.73160274,2777.8,2777.7,0.25369867]
[1645225305057,0.90065,2777.8,2777.7,0.25369867]
[1645225305261,2.2750876,2777.8,2777.7,0.25369867]
[1645225309101,0.90065,2777.8,2777.7,0.25369867]
[1645225311956,2.73160274,2777.8,2777.7,0.25369867]
[1645225312858,0.90065,2777.8,2777.7,0.25369867]
[1645225314459,2.73160274,2777.8,2777.7,0.25369867]
[1645225314859,0.90065,2777.8,2777.7,0.25369867]
[1645225315061,2.73160274,2777.8,2777.7,0.25369867]
[1645225316703,0.90065,2777.8,2777.7,0.25369867]
[1645225319560,0.90065,2777.8,2777.7,0.25228623]
[1645225319757,1.20065,2777.8,2777.7,0.18381409]
[1645225319958,0.9008,2777.7,2777.1,1.1266]
[1645225320157,1.37447682,2777.4,2777.1,1.1266]
[1645225320357,1.37447682,2777.4,2776.9,0.00153315]
[1645225320759,1.37447682,2777.4,2776.8,0.00387217]
[1645225320963,1.37447682,2777.4,2776.9,0.00153316]
[1645225321759,0.9008,2777.3,2776.9,0.00153316]
[1645225322258,1.8016,2777.3,2776.9,0.00153316]
[1645225323105,1.8016,2777.3,2776.8,0.00387217]
[1645225323307,1.8016,2777.3,2776.9,0.00136165]
[1645225323705,0.9008,2777.3,2776.9,0.00136165]
[1645225324307,0.9008,2777.3,2776.8,0.00387217]
[1645225324506,0.9008,2777.3,2776.9,0.00136165]
[1645225325306,0.9008,2777.3,2777.1,0.18381409]
[1645225326664,14.04343575,2777.3,2777.1,0.18381409]
[1645225326859,11.01,2777.2,2777.1,0.18381409]
[1645225327064,3.9035444,2777.3,2777.1,0.18381409]
[1645225327258,5.73618015,2777.3,2777.1,0.18381409]
[1645225327459,16.74618015,2777.3,2777.1,0.18381409]
[1645225328258,8.43941015,2777.3,2777.1,0.18381409]
[1645225328460,19.44941015,2777.3,2777.1,0.18381409]
[1645225328663,13.7132,2777.2,2777.1,0.18381409]
[1645225329160,14.02362358,2777.2,2777.1,0.18381409]
[1645225329358,2.7032,2777.2,2777.1,0.18381409]
[1645225329559,14.7132,2777.2,2777.1,0.18381409]
[1645225329760,14.7132,2777.2,2776.9,0.00138555]
[1645225329761,0.90108,2777.0,2776.9,0.00138555]
[1645225329959,0.9011098,2776.5,2775.1,0.68046423]
[1645225330211,0.9011098,2776.5,2775.2,0.14406]
[1645225330212,1.37194031,2776.2,2775.2,0.14406]
[1645225330607,12.4431,2776.4,2775.3,1.53051062]
[1645225330608,1.37194031,2776.3,2775.3,1.53051062]
[1645225330808,12.4431,2776.4,2774.9,1.2143]
[1645225331010,1.8025505,2776.3,2775.0,1.53051178]
[1645225331211,0.90138,2776.2,2775.0,1.53051178]
[1645225331410,11.91126,2776.1,2775.0,1.53051178]
[1645225331610,0.90126,2776.1,2775.0,1.53051178]
[1645225332509,0.9013879,2775.8,2775.0,1.53051178]
[1645225332710,0.9013879,2775.8,2774.9,1.2143]
[1645225332711,0.90136,2775.6,2774.9,1.2143]
[1645225332912,1.80272,2775.6,2774.9,1.2143]
[1645225333211,0.90136,2775.6,2774.8,7.49]
[1645225334249,0.90136,2775.6,2775.1,0.00160782]
[1645225334744,0.90137,2775.4,2774.8,7.44160782]
[1645225334945,0.90137,2775.4,2774.7,0.5]
[1645225335148,1.80278,2775.4,2774.7,0.5]
[1645225335350,0.90141,2775.4,2774.7,0.5]
[1645225335945,0.90145,2775.2,2774.7,0.5]
[1645225336549,0.90145,2775.2,2774.6,7.49]
[1645225336550,0.9015758,2775.1,2774.6,6.75261308]
[1645225336748,0.9015758,2775.1,2774.3,4.2611]
[1645225336749,1.2015758,2775.1,2774.3,4.2111]
[1645225336947,0.90171,2775.0,2773.6,1.2047]
[1645225337150,0.90176,2774.8,2773.7,4.3151]
[1645225337811,0.90176,2774.8,2773.7,4.10659491]
[1645225338011,0.90176,2774.8,2773.7,4.00659491]
[1645225338210,0.90175,2774.5,2773.7,4.00659491]
[1645225338408,0.90177,2774.3,2773.7,3.1738]
[1645225339012,0.90177,2774.3,2773.9,0.00160449]
[1645225340009,0.90177,2774.3,2773.5,7.49]
[1645225340209,0.90177,2774.3,2774.0,0.00132099]
[1645225341210,0.90177,2774.3,2773.5,7.49]
[1645225341465,0.90177,2774.3,2774.0,0.00132097]
[1645225342453,0.90177,2774.3,2773.5,7.49]
[1645225342652,0.90177,2774.3,2774.0,0.00132097]
[1645225343452,0.90177,2774.3,2773.6,0.00528465]
[1645225343651,0.90177,2774.3,2773.5,7.49]
[1645225343853,0.90177,2774.3,2774.0,0.00132097]
[1645225344752,0.90177,2774.3,2773.5,7.49]
[1645225344952,0.90177,2774.3,2774.0,0.00136449]
[1645225346005,0.90177,2774.3,2773.5,7.49]
[1645225346206,0.90177,2774.3,2774.0,0.00136449]
[1645225346911,1.80356,2774.3,2774.0,0.00136449]
[1645225347208,1.80356,2774.3,2773.5,7.49]
[1645225347407,0.90182,2774.1,2774.0,0.00136449]
[1645225348410,0.90182,2774.1,2773.2,3.0375]
[1645225348611,0.90182,2774.1,2773.9,0.00135821]
[1645225348812,2.7059055,2774.0,2773.9,0.00135821]
[1645225349250,3.0059055,2774.0,2773.9,5.821e-05]
[1645225349458,3.0059055,2774.0,2773.5,0.00543365]
[1645225349459,11.91223,2773.9,2773.5,0.00543365]
[1645225349648,11.91223,2773.9,2772.5,1.1673]
[1645225349847,0.9022334,2773.6,2772.5,1.1673]
[1645225350050,0.90224,2773.1,2772.4,3.0354]
[1645225350251,1.80448,2773.3,2772.3,1.2421]
[1645225350252,1.80448,2773.3,2773.1,0.73151715]
[1645225350449,3.70664,2773.6,2773.1,0.73151715]
[1645225350648,1.0,2773.5,2773.1,0.73151715]
[1645225350848,4.30664,2773.6,2773.1,0.73151715]
[1645225351051,0.9022132,2773.3,2773.1,0.73151715]
[1645225351365,1.20223,2773.2,2772.4,3.0354]
[1645225351558,0.29390913,2773.2,2772.2,1.8763]
[1645225351850,5.3044719,2773.4,2771.9,3.3082]
[1645225351851,1.8044719,2773.4,2771.9,3.3082]
[1645225352054,2.9134,2773.3,2771.9,3.2582]
[1645225352355,0.9022557,2773.1,2772.6,0.00160185]
[1645225352550,1.80468,2773.0,2772.6,0.00160185]
[1645225353008,2.80468,2773.0,2772.6,0.00160185]
[1645225353210,0.3,2772.9,2771.6,1.9196]
[1645225353431,1.8048441,2772.6,2772.2,0.00640813]
[1645225353607,0.90243,2772.6,2772.2,0.00640813]
[1645225354307,0.90243,2772.6,2771.3,1.1709]
[1645225354507,0.90243,2772.6,2771.4,1.5318841]
[1645225354711,0.90243,2772.6,2772.3,0.00160202]
[1645225355610,0.90243,2772.6,2771.3,1.1709]
[1645225355808,1.20243,2772.6,2772.3,0.00160199]
[1645225356461,2.10482,2772.6,2772.3,0.00160199]
[1645225356660,2.10482,2772.6,2771.3,1.1709]
[1645225356858,0.90244,2772.2,2771.3,1.1709]
[1645225357061,0.90244,2772.2,2771.9,0.00640894]
[1645225357264,0.90239,2772.6,2771.9,0.00640894]
[1645225357458,1.80477,2772.8,2771.9,0.00640894]
[1645225357862,0.90234,2772.5,2771.9,0.00640894]
[1645225358060,0.90234,2772.5,2771.6,7.49]
[1645225358259,0.90234,2772.5,2772.2,0.00160205]
[1645225359062,1.80476,2772.5,2771.8,0.00640917]
[1645225359260,1.80486,2772.4,2771.0,8.26653608]
[1645225359464,4.57496,2772.4,2772.2,0.00160205]
[1645225360312,4.57496,2772.4,2771.2,0.9023518]
[1645225360613,4.57496,2772.4,2772.2,0.00160208]
[1645225360614,2.7701,2772.4,2772.2,0.00160208]
[1645225361615,2.7701,2772.4,2771.1,0.00389346]
[1645225361813,2.7701,2772.4,2771.7,0.00640929]
[1645225361814,0.90242,2772.2,2771.7,0.00640929]
[1645225362816,0.90242,2772.2,2771.2,0.00389346]
[1645225362817,1.20242,2772.2,2771.2,0.00389346]
[1645225363019,1.20242,2772.2,2771.8,0.00160228]
[1645225363020,0.90253,2771.9,2771.8,0.00160228]
[1645225363218,1.50253,2771.9,2771.8,2.28e-06]
[1645225364012,0.90273,2771.6,2770.7,0.03877479]
[1645225364391,1.20275,2771.6,2770.7,0.03877479]
[1645225365591,0.90273,2771.5,2770.7,0.03877479]
[1645225365993,0.90276,2771.3,2770.7,0.03877479]
[1645225366395,0.90276,2771.3,2770.7,0.03488133]
[1645225366797,1.1928,2771.6,2770.7,0.03488133]
[1645225366997,0.90251,2772.0,2770.7,0.03488133]
[1645225367195,6.9994,2772.3,2770.7,0.93735823]
[1645225367196,2.7726,2772.3,2770.7,0.93735823]
[1645225367395,1.2343,2772.2,2770.8,0.00389346]
[1645225367601,1.6097,2772.3,2770.7,0.03488133]
[1645225367816,1.6097,2772.3,2770.9,5.0]
[1645225368009,2.75709,2772.6,2771.4,0.00159626]
[1645225368010,0.90229,2772.6,2771.4,0.00159626]
[1645225368208,0.90229,2772.6,2771.5,0.9022493]
[1645225368411,0.90228,2772.9,2771.5,0.9022493]
[1645225368709,0.90228,2772.9,2771.6,0.00389346]
[1645225368908,0.90219,2772.8,2771.6,0.00389346]
[1645225369114,0.90219,2772.8,2771.7,0.00159608]
[1645225369710,0.90229,2772.7,2771.7,0.00159608]
[1645225369908,0.90229,2772.7,2771.6,0.01027783]
[1645225369909,2.09319,2772.7,2771.6,0.01027783]
[1645225370114,0.3,2772.6,2771.6,0.00389346]
[1645225370409,0.90247,2772.4,2771.7,0.00798034]
[1645225370615,1.8049189,2772.4,2771.7,0.00798034]
[1645225370811,0.90245,2772.3,2771.7,0.00798034]
[1645225371209,1.80493,2772.5,2771.6,0.00389346]
[1645225371486,3.8735,2772.6,2771.7,0.00159608]
[1645225371661,0.3,2772.5,2771.7,0.00159608]
[1645225371962,3.8735,2772.6,2771.7,0.00159608]
[1645225372363,3.8735,2772.6,2771.6,0.00389346]
[1645225372768,3.8735,2772.6,2771.7,0.00159608]
[1645225373564,3.8735,2772.6,2771.6,0.00389346]
[1645225373763,3.8735,2772.6,2771.7,0.00159608]
[1645225374765,0.90236,2772.3,2771.6,0.00389346]
[1645225374964,0.90236,2772.3,2771.7,0.00159608]
[1645225376007,0.90236,2772.3,2771.6,0.00389346]
[1645225376209,2.9712,2772.6,2771.7,0.00159608]
[1645225377209,2.9712,2772.6,2771.6,0.00389346]
[1645225377210,3.87354,2772.6,2771.6,0.00389346]
[1645225377408,3.87354,2772.6,2771.6,0.00581314]
[1645225377709,0.90229,2772.5,2771.6,0.00581314]
[1645225378113,1.20229,2772.5,2771.6,0.00581314]
[1645225378310,3.87354,2772.6,2771.6,0.00389346]
[1645225378712,0.90237,2772.3,2771.7,0.00159608]
[1645225379556,0.90237,2772.3,2771.6,0.00389346]
[1645225379755,0.90237,2772.3,2771.7,0.00159608]
[1645225380855,0.90237,2772.3,2771.6,0.00389346]
[1645225380856,0.90242,2772.1,2771.6,0.00389346]
[1645225381057,0.90242,2772.1,2771.7,0.00159608]
[1645225381558,1.20242,2772.1,2771.7,0.00159608]
[1645225381761,1.50242,2772.1,2771.7,0.00159608]
[1645225381959,1.50242,2772.1,2771.0,0.00389346]
[1645225382156,0.90252,2771.8,2771.0,0.00389346]
[1645225382356,1.20252,2771.8,2771.7,0.00159608]
[1645225383211,1.20252,2771.8,2771.0,0.00389346]
[1645225383409,1.20252,2771.8,2771.6,0.00159611]
[1645225384412,1.20252,2771.8,2771.0,0.00389346]
[1645225384813,1.90255,2772.0,2771.6,0.00159614]
[1645225384814,0.90246,2772.0,2771.6,0.00159614]
[1645225385616,0.90246,2772.0,2771.0,0.00389346]
[1645225385813,0.90246,2772.0,2771.7,0.00159608]
[1645225386556,1.20246,2772.0,2771.7,0.00159608]
[1645225386760,1.20246,2772.0,2771.0,0.00389346]
[1645225386956,0.90253,2771.8,2771.0,0.00389346]
[1645225387255,0.90253,2771.8,2771.7,0.00149633]
[1645225387454,0.90253,2771.8,2771.7,0.00023742]
[1645225388055,0.90253,2771.8,2771.0,0.00389346]
[1645225389460,0.90245,2772.0,2771.0,1.53643363]
[1645225389658,0.90245,2772.0,2771.1,0.00389346]
[1645225390709,0.90245,2772.0,2771.4,0.00159308]
[1645225391610,0.90245,2772.0,2770.9,2.7250312]
[1645225391811,0.90245,2772.0,2771.6,0.00159299]
[1645225392810,0.90245,2772.0,2770.9,1.8226]
[1645225393009,1.20245,2772.0,2771.6,0.00159299]
[1645225393211,1.80512,2771.9,2771.6,0.00159299]
[1645225393709,0.90254,2771.9,2771.6,0.00159299]
[1645225393955,0.90254,2771.9,2770.9,1.8226]
[1645225394357,0.90254,2771.9,2771.2,0.00191617]
[1645225395164,0.90254,2771.9,2770.9,1.8226]
[1645225395358,0.90254,2771.9,2771.4,0.00159308]
[1645225396456,0.90254,2771.9,2770.9,1.8226]
[1645225396655,0.90254,2771.9,2771.5,0.00159302]
[1645225397710,0.90254,2771.9,2770.9,1.8226]
[1645225397911,0.90254,2771.9,2771.6,0.00159299]
[1645225398910,0.90254,2771.9,2770.9,1.8226]
[1645225399111,0.90254,2771.9,2771.6,0.00159072]
[1645225399909,0.90254,2771.9,2770.9,1.8226]
[1645225400318,0.90254,2771.9,2771.2,0.00191343]
[1645225401119,0.90254,2771.9,2770.9,1.8226]
[1645225401312,0.90254,2771.9,2770.9,1.7726]
[1645225401557,0.90254,2771.9,2771.0,0.00191357]
[1645225402363,0.90254,2771.9,2770.9,1.7726]
[1645225402559,0.90254,2771.9,2770.9,1.77451636]
[1645225403562,0.90254,2771.9,2770.9,1.7726]
[1645225403768,0.90254,2771.9,2771.3,0.00159317]
[1645225404163,0.90241,2772.1,2771.3,0.00159317]
[1645225404365,2.7299,2772.2,2771.3,0.00159317]
[1645225404762,2.7299,2772.2,2771.1,0.68046423]
[1645225404963,2.7299,2772.2,2771.1,0.98046423]
[1645225405212,2.7299,2772.2,2771.6,0.00159299]
[1645225406015,2.7299,2772.2,2771.2,0.68046423]
[1645225406320,2.7299,2772.2,2771.6,0.00159299]
[1645225407216,2.7299,2772.2,2771.2,0.68046423]
[1645225407513,2.7299,2772.2,2771.6,0.00159299]
[1645225408315,2.7299,2772.2,2771.1,2.88281493]
[1645225408717,0.90242,2772.1,2771.6,0.00159299]
[1645225409561,0.90242,2772.1,2771.1,0.98046423]
[1645225409768,2.7299,2772.2,2771.6,0.00159299]
[1645225410361,2.70038178,2772.2,2771.6,0.00159299]
[1645225410762,2.70038178,2772.2,2771.4,1.53241546]
[1645225410962,2.70038178,2772.2,2771.5,1.53241546]
[1645225411163,2.70038178,2772.2,2771.6,0.00159299]
[1645225411965,2.70038178,2772.2,2771.4,1.53241546]
[1645225412163,2.70038178,2772.2,2771.5,1.53241546]
[1645225412364,2.70038178,2772.2,2771.6,1.53400845]
[1645225412563,2.70038178,2772.2,2771.7,1.53241546]
[1645225412815,2.70038178,2772.2,2771.8,1.53241546]
[1645225413013,0.90235,2772.3,2771.9,1.53241546]
[1645225413215,0.90235,2772.3,2771.1,2.88280633]
[1645225413512,2.12375,2772.3,2771.6,0.00159299]
[1645225414315,1.2214,2772.3,2771.5,1.53242473]
[1645225414516,1.2214,2772.3,2771.6,1.53242473]
[1645225414716,1.2214,2772.3,2771.7,1.53242473]
[1645225414915,1.2214,2772.3,2771.8,1.53242473]
[1645225415114,0.54217323,2772.4,2771.9,1.53242473]
[1645225415315,0.54217323,2772.4,2771.6,0.00159299]
[1645225415715,0.90239,2772.2,2771.5,1.53241386]
[1645225415918,0.90239,2772.2,2771.6,1.54037875]
[1645225416116,0.90239,2772.2,2771.7,1.53241386]
[1645225416960,0.90239,2772.2,2771.8,1.53241386]
[1645225417158,0.90239,2772.2,2771.9,1.53241386]
[1645225417358,0.90239,2772.2,2771.6,0.00159299]
[1645225417563,1.79177323,2772.4,2771.5,1.48400821]
[1645225417564,2.69408323,2772.4,2771.5,1.48400821]
[1645225418159,2.69408323,2772.4,2771.1,0.98046423]
[1645225418558,2.64408323,2772.4,2771.1,0.98046423]
[1645225420206,2.64408323,2772.4,2771.1,1.88281133]
[1645225420609,2.64408323,2772.4,2771.5,0.00158907]
[1645225421611,2.64408323,2772.4,2771.3,0.9022861]
[1645225421913,1.74177323,2772.4,2771.5,0.00158907]
[1645225422712,1.74177323,2772.4,2771.2,0.00387386]
[1645225423115,1.74177323,2772.4,2771.5,0.00158907]
[1645225423515,1.74177323,2772.4,2771.5,0.90382667]
[1645225423713,1.74177323,2772.4,2771.6,0.00387386]
[1645225424473,0.9024556,2772.3,2771.6,0.00387386]
[1645225424664,0.9024556,2772.3,2771.4,0.00387386]
[1645225424860,0.9024556,2772.3,2771.3,0.001911]
[1645225425067,1.2024556,2772.3,2771.3,0.001911]
[1645225425263,1.2024556,2772.3,2771.2,0.00387386]
[1645225425264,0.9024556,2772.3,2771.2,0.00387386]
[1645225425462,0.9024556,2772.3,2771.5,0.00158907]
[1645225425662,0.90246,2772.1,2771.5,0.00158907]
[1645225426365,0.90246,2772.1,2771.2,0.00387386]
[1645225426565,0.90246,2772.1,2771.5,0.00158907]
[1645225426767,2.10806,2772.1,2771.5,0.00158907]
[1645225427563,2.10806,2772.1,2771.2,0.00387386]
[1645225427816,2.10806,2772.1,2771.5,0.00158907]
[1645225428709,2.10806,2772.1,2771.2,0.01023063]
[1645225428909,1.2056,2772.1,2771.2,0.00387386]
[1645225429133,1.2056,2772.1,2771.5,0.00158907]
[1645225429713,0.49217323,2772.4,2771.5,0.00158907]
[1645225430111,0.49217323,2772.4,2771.2,0.68433809]
[1645225430312,0.49217323,2772.4,2771.5,0.00158907]
[1645225431112,0.49217323,2772.4,2771.4,0.9022479]
[1645225431313,1.39448323,2772.4,2771.4,0.9022479]
[1645225431563,2.76642354,2772.4,2771.5,0.00158907]
[1645225431762,1.39448323,2772.4,2771.5,0.00158907]
[1645225432462,1.4843,2772.3,2771.3,0.00387386]
[1645225432669,0.90255,2772.0,2771.5,0.00158907]
[1645225433662,0.90255,2772.0,2771.1,0.00387386]
[1645225434068,0.90255,2772.0,2771.5,0.00158907]
[1645225434263,0.90237,2772.2,2771.5,0.00158907]
[1645225434868,0.90237,2772.2,2771.1,0.00387386]
[1645225435065,0.90237,2772.2,2771.5,0.00158907]
[1645225435907,0.90237,2772.2,2771.3,0.00635665]
[1645225436108,0.90237,2772.2,2771.1,0.00387386]
[1645225436308,0.90237,2772.2,2771.5,0.00158907]
[1645225437209,2.27431031,2772.2,2771.1,0.00387386]
[1645225437413,2.27431031,2772.2,2771.5,0.00158907]
[1645225437610,0.90237,2772.2,2771.5,0.00158907]
[1645225438410,0.90237,2772.2,2771.4,1.53271039]
[1645225438609,0.90237,2772.2,2771.1,0.00387386]
[1645225438610,0.90237,2772.2,2771.5,1.53429946]
[1645225438809,0.90237,2772.2,2771.6,1.53271039]
[1645225439063,0.00140706,2771.6,2771.5,0.00158907]
[1645225439664,0.00140706,2771.6,2771.4,1.53266109]
[1645225439861,0.00140706,2771.6,2771.5,1.53266109]
[1645225440064,0.00140706,2771.6,2771.4,0.0015891]
[1645225440862,0.00140706,2771.6,2771.2,1.53266109]
[1645225441065,0.00140706,2771.6,2771.4,0.00158913]